bitfinex/quotes_BTCUSD_20230110
["timestamp","ask_amount","ask_price","bid_price","bid_amount"]
[1673392513210,2.06068579,17436.0,17435.0,0.00026569]
[1673392514832,0.91162431,17435.0,17434.0,0.30618809]
[1673392515014,1.27087331,17435.0,17434.0,0.30618809]
[1673392515297,2.17064158,17435.0,17434.0,0.00840533]
[1673392515551,2.50221185,17435.0,17434.0,0.00840533]
[1673392516601,2.30221185,17435.0,17434.0,0.00840533]
[1673392516869,1.99864158,17435.0,17434.0,0.00940533]
[1673392517126,1.80604158,17435.0,17434.0,0.00840533]
[1673392517428,1.87604158,17435.0,17434.0,0.01840533]
[1673392527056,1.46501829,17435.0,17434.0,0.01840533]
[1673392527300,1.30061829,17435.0,17434.0,0.01840533]
[1673392527558,0.94136929,17435.0,17434.0,0.01840533]
[1673392530639,0.94136929,17435.0,17434.0,0.59199633]
[1673392530910,0.94130929,17435.0,17434.0,0.59199633]
[1673392531660,0.94130929,17435.0,17434.0,1.16558733]
[1673392532686,0.22974498,17435.0,17434.0,1.16558733]
[1673392532975,0.07,17435.0,17434.0,1.16558733]
[1673392534543,0.22974498,17435.0,17434.0,1.16558733]
[1673392535060,0.83330811,17435.0,17434.0,1.16558733]
[1673392535314,1.19255711,17435.0,17434.0,0.59199633]
[1673392536097,0.83330811,17435.0,17434.0,0.59199633]
[1673392536872,0.67356313,17435.0,17434.0,0.59199633]
[1673392537120,0.83330811,17435.0,17434.0,0.59199633]
[1673392538426,0.67356313,17435.0,17434.0,0.59199633]
[1673392538708,0.83330811,17435.0,17434.0,0.59199633]
[1673392540570,0.67356313,17435.0,17434.0,0.59199633]
[1673392541135,0.99790811,17435.0,17434.0,0.59199633]
[1673392541389,1.19741213,17435.0,17434.0,0.59199633]
[1673392541911,1.35715711,17435.0,17434.0,0.59199633]
[1673392543472,1.5284669,17435.0,17434.0,0.59199633]
[1673392543910,1.36872192,17435.0,17434.0,0.59199633]
[1673392544130,1.3638669,17435.0,17434.0,0.59199633]
[1673392546153,1.0046179,17435.0,17434.0,0.59199633]
[1673392546924,0.84487292,17435.0,17434.0,0.59199633]
[1673392547179,1.0046179,17435.0,17434.0,0.59199633]
[1673392548518,1.26257619,17435.0,17434.0,0.59199633]
[1673392548733,3.30469027,17435.0,17434.0,0.01840533]
[1673392548995,3.66393927,17435.0,17434.0,0.01840533]
[1673392550260,3.66353739,17435.0,17434.0,0.01840533]
[1673392550517,4.6207522,17435.0,17434.0,0.01840533]
[1673392550769,3.83591146,17435.0,17434.0,0.01840533]
[1673392551017,4.00051146,17435.0,17434.0,0.01840533]
[1673392551240,3.82812401,17435.0,17434.0,0.01840533]
[1673392551495,4.00051146,17435.0,17434.0,0.01840533]
[1673392551752,4.25807887,17435.0,17434.0,0.01840533]
[1673392552009,3.82814839,17435.0,17434.0,0.01840533]
[1673392553779,3.67756938,17435.0,17434.0,0.01840533]
[1673392554302,2.93391354,17435.0,17434.0,0.01840533]
[1673392554593,1.78643803,17435.0,17434.0,0.01840533]
[1673392554848,1.52887062,17435.0,17434.0,0.01840533]
[1673392555387,1.78643803,17435.0,17434.0,0.01840533]
[1673392556951,1.52887062,17435.0,17434.0,0.01840533]
[1673392558001,1.36427062,17435.0,17434.0,0.01840533]
[1673392558246,0.83330811,17435.0,17434.0,0.01840533]
[1673392558502,1.00502162,17435.0,17434.0,0.01840533]
[1673392561072,0.83330811,17435.0,17434.0,0.01840533]
[1673392561590,0.83330811,17435.0,17434.0,0.59199633]
[1673392561853,0.07,17435.0,17434.0,2.16503313]
[1673392562099,0.06988219,17435.0,17434.0,2.78441495]
[1673392562356,0.06988219,17435.0,17434.0,3.01569775]
[1673392562656,0.06960319,17435.0,17434.0,3.37509427]
[1673392562915,0.06960319,17435.0,17434.0,3.01584485]
[1673392563449,0.06960319,17435.0,17434.0,3.37509385]
[1673392563765,0.06960319,17435.0,17434.0,3.54571074]
[1673392564068,0.06960319,17435.0,17434.0,3.01579364]
[1673392564321,0.06960319,17435.0,17434.0,3.37504264]
[1673392564582,0.06960319,17435.0,17434.0,3.01579364]
[1673392564834,0.06960319,17435.0,17434.0,3.01564612]
[1673392565100,0.06960319,17435.0,17434.0,2.70120411]
[1673392565329,0.22934817,17435.0,17434.0,2.40120411]
[1673392566138,0.22934817,17435.0,17434.0,2.70120411]
[1673392566392,0.22934817,17435.0,17434.0,2.22933451]
[1673392567156,0.22934817,17435.0,17434.0,2.70120411]
[1673392567441,0.22934817,17435.0,17434.0,3.06045311]
[1673392567696,0.22934817,17435.0,17434.0,2.88858351]
[1673392567967,0.06960319,17435.0,17434.0,2.70120411]
[1673392568219,0.06960319,17435.0,17434.0,3.06045311]
[1673392569307,0.06960319,17435.0,17434.0,2.70120411]
[1673392569522,0.06960319,17435.0,17434.0,2.52933451]
[1673392569764,0.06960319,17435.0,17434.0,2.70120411]
[1673392570038,0.06960319,17435.0,17434.0,2.52933451]
[1673392570319,0.06960319,17435.0,17434.0,3.06045311]
[1673392570569,0.06960319,17435.0,17434.0,2.70120411]
[1673392571088,0.06960319,17435.0,17434.0,2.52933451]
[1673392571306,0.06960319,17435.0,17434.0,2.22933451]
[1673392572072,0.06960319,17435.0,17434.0,2.06473451]
[1673392573628,1.33976134,17435.0,17434.0,0.01840533]
[1673392573885,1.12754831,17435.0,17434.0,0.01840533]
[1673392574150,0.76829931,17435.0,17434.0,0.01840533]
[1673392574688,1.12754831,17435.0,17434.0,0.01840533]
[1673392576521,1.28729329,17435.0,17434.0,0.01840533]
[1673392577083,1.12754831,17435.0,17434.0,0.01840533]
[1673392577314,1.28729329,17435.0,17434.0,0.01840533]
[1673392582116,1.28729329,17435.0,17434.0,0.06011794]
[1673392583861,1.85832047,17435.0,17434.0,0.06011794]
[1673392584105,1.4590068,17435.0,17434.0,0.06011794]
[1673392584349,1.28729329,17435.0,17434.0,0.06011794]
[1673392584605,1.4590068,17435.0,17434.0,0.06011794]
[1673392585042,1.28729329,17435.0,17434.0,0.06011794]
[1673392588452,1.4590068,17435.0,17434.0,0.06011794]
[1673392588712,2.03011462,17435.0,17434.0,0.06011794]
[1673392589759,2.28768203,17435.0,17434.0,0.06011794]
[1673392590049,2.03011462,17435.0,17434.0,0.06011794]
[1673392590319,2.28768203,17435.0,17434.0,0.06011794]
[1673392591095,2.12428203,17435.0,17434.0,0.06011794]
[1673392593159,1.8266638,17435.0,17434.0,0.06011794]
[1673392593422,0.57806536,17434.0,17433.0,0.00829596]
[1673392593689,3.41851032,17434.0,17433.0,0.00829596]
[1673392594755,2.09935595,17434.0,17433.0,0.00829596]
[1673392595019,2.09935595,17434.0,17433.0,0.01729596]
[1673392595020,2.18735595,17434.0,17433.0,0.01729596]
[1673392596614,2.30950567,17434.0,17433.0,0.01729596]
[1673392597966,2.48112158,17434.0,17433.0,0.01729596]
[1673392598237,4.20228539,17434.0,17433.0,0.01729596]
[1673392598491,5.13109731,17434.0,17433.0,0.01729596]
[1673392598747,4.70116683,17434.0,17433.0,0.01729596]
[1673392599038,5.79253701,17434.0,17433.0,0.01729596]
[1673392599341,5.79253701,17434.0,17433.0,0.00829596]
[1673392599342,5.70453701,17434.0,17433.0,0.00829596]
[1673392599608,6.18335604,17434.0,17433.0,0.01029596]
[1673392599858,6.04735604,17434.0,17433.0,0.00829596]
[1673392600108,6.18335604,17434.0,17433.0,0.01029596]
[1673392600332,6.06120632,17434.0,17433.0,0.01029596]
[1673392600915,5.11367422,17434.0,17433.0,0.01029596]
[1673392601697,4.45107348,17434.0,17433.0,0.01029596]
[1673392601982,5.02524966,17434.0,17433.0,0.01029596]
[1673392602513,3.87767685,17434.0,17433.0,0.01029596]
[1673392602764,5.02529844,17434.0,17433.0,0.01029596]
[1673392603010,5.02531351,17434.0,17433.0,0.01029596]
[1673392603248,5.11801987,17434.0,17433.0,0.01029596]
[1673392603723,5.02531351,17434.0,17433.0,0.01029596]
[1673392604476,4.87990361,17434.0,17433.0,0.01029596]
[1673392604738,4.45113417,17434.0,17433.0,0.01029596]
[1673392604990,5.39237763,17434.0,17433.0,0.01029596]
[1673392605754,5.92485256,17434.0,17433.0,0.01029596]
[1673392606004,4.98352408,17434.0,17433.0,0.01029596]
[1673392606229,5.03044021,17434.0,17433.0,0.01029596]
[1673392607804,6.18448965,17434.0,17433.0,0.01029596]
[1673392608074,5.45920965,17434.0,17433.0,0.01029596]
[1673392608370,5.20223105,17434.0,17433.0,0.01029596]
[1673392608576,5.98572987,17434.0,17433.0,0.01029596]
[1673392608830,5.72876466,17434.0,17433.0,0.01029596]
[1673392609329,5.55695844,17434.0,17433.0,0.01029596]
[1673392609580,5.03042476,17434.0,17433.0,0.01029596]
[1673392610599,5.20223105,17434.0,17433.0,0.01029596]
[1673392611108,6.67164563,17434.0,17433.0,0.01029596]
[1673392611368,5.97144158,17434.0,17433.0,0.01029596]
[1673392614779,6.63371427,17434.0,17433.0,0.01029596]
[1673392615024,5.20223105,17434.0,17433.0,0.01029596]
[1673392616306,5.00791159,17434.0,17433.0,0.01029596]
[1673392617333,3.86029,17434.0,17433.0,0.01029596]
[1673392617598,3.45802491,17434.0,17433.0,0.01029596]
[1673392617833,3.11520588,17434.0,17433.0,0.01029596]
[1673392619133,2.54161488,17434.0,17433.0,0.01029596]
[1673392619401,2.37701488,17434.0,17433.0,0.01029596]
[1673392619660,1.21572332,17434.0,17433.0,0.01029596]
[1673392619930,0.69287432,17434.0,17433.0,0.01029596]
[1673392625967,0.136,17434.0,17433.0,0.01029596]
[1673392626224,0.136,17434.0,17433.0,1.28077371]
[1673392638540,0.136,17434.0,17433.0,1.85439771]
[1673392640253,0.13589296,17434.0,17433.0,2.05439771]
[1673392642083,0.13589296,17434.0,17433.0,2.35439771]
[1673392643626,0.13589296,17434.0,17433.0,1.78077371]
[1673392647989,0.13589296,17434.0,17433.0,2.35439771]
[1673392649008,0.12589296,17434.0,17433.0,2.35439771]
[1673392650824,0.12589296,17434.0,17433.0,1.78077371]
[1673392652216,0.12589296,17434.0,17433.0,1.78071247]
[1673392652739,0.12589296,17434.0,17433.0,1.48071247]
[1673392654449,0.12589296,17434.0,17433.0,2.05433647]
[1673392654958,0.12589296,17434.0,17433.0,2.35433647]
[1673392656258,0.12589296,17434.0,17433.0,2.05433647]
[1673392656519,0.28563794,17434.0,17433.0,2.05433647]
[1673392662626,0.45709517,17434.0,17433.0,2.05433647]
[1673392662871,0.45709517,17434.0,17433.0,2.05113577]
[1673392663383,0.28563794,17434.0,17433.0,2.05113577]
[1673392663649,0.45709517,17434.0,17433.0,2.05113577]
[1673392663894,0.28563794,17434.0,17433.0,2.05113577]
[1673392664412,0.12589296,17434.0,17433.0,2.05113577]
[1673392665936,0.12589296,17434.0,17433.0,2.52300537]
[1673392666191,0.12589296,17434.0,17433.0,2.88225437]
[1673392666431,0.12589296,17434.0,17433.0,3.13913028]
[1673392666943,0.12589296,17434.0,17433.0,3.21165824]
[1673392668499,0.12589296,17434.0,17433.0,3.01700924]
[1673392669020,0.12589296,17434.0,17433.0,3.37625824]
[1673392670795,0.70553032,17434.0,17433.0,3.00373028]
[1673392671055,0.70553032,17434.0,17433.0,2.38760537]
[1673392671335,0.70553032,17434.0,17433.0,2.74685437]
[1673392671570,0.70553032,17434.0,17433.0,2.72888937]
[1673392671820,0.70553032,17434.0,17433.0,2.38760537]
[1673392672072,0.70553032,17434.0,17433.0,2.21573577]
[1673392673907,0.70553032,17434.0,17433.0,2.38760537]
[1673392674159,0.8652753,17434.0,17433.0,2.21573577]
[1673392674686,0.70553032,17434.0,17433.0,2.21573577]
[1673392674955,0.70553032,17434.0,17433.0,2.38760537]
[1673392675234,0.70553032,17434.0,17433.0,2.21573577]
[1673392675999,0.8652753,17434.0,17433.0,2.21573577]
[1673392678110,1.03673253,17434.0,17433.0,2.21573577]
[1673392679442,0.8652753,17434.0,17433.0,2.38760537]
[1673392681141,0.8652753,17434.0,17433.0,2.47988128]
[1673392681399,0.8652753,17434.0,17433.0,2.22300537]
[1673392682418,0.8652753,17434.0,17433.0,2.85336359]
[1673392683181,0.8652753,17434.0,17433.0,2.52300537]
[1673392683433,0.8652753,17434.0,17433.0,2.02300537]
[1673392683719,0.8652753,17434.0,17433.0,1.85113577]
[1673392683973,0.8652753,17434.0,17433.0,2.02300537]
[1673392684234,0.8652753,17434.0,17433.0,1.85113577]
[1673392684479,1.03673253,17434.0,17433.0,1.85113577]
[1673392684727,0.8652753,17434.0,17433.0,1.85113577]
[1673392685230,0.87698755,17434.0,17433.0,1.85113577]
[1673392685480,1.03673253,17434.0,17433.0,1.85113577]
[1673392686024,0.8652753,17434.0,17433.0,1.85113577]
[1673392686270,0.8652753,17434.0,17433.0,2.02300537]
[1673392686523,0.28553302,17434.0,17433.0,2.52300537]
[1673392686806,0.28553302,17434.0,17433.0,2.22300537]
[1673392687277,0.28553302,17434.0,17433.0,2.52300537]
[1673392687794,0.28553302,17434.0,17433.0,2.22300537]
[1673392689363,0.28553302,17434.0,17433.0,2.05113577]
[1673392689873,0.28553302,17434.0,17433.0,2.22300537]
[1673392690127,0.52321091,17434.0,17433.0,1.32615162]
[1673392690385,1.23630086,17434.0,17433.0,0.00703402]
[1673392690640,1.59554986,17434.0,17433.0,0.00703402]
[1673392690896,2.17335824,17434.0,17433.0,0.00703402]
[1673392691150,3.32106123,17434.0,17433.0,0.00703402]
[1673392691411,2.17352498,17434.0,17433.0,0.00703402]
[1673392691922,2.51634401,17434.0,17433.0,0.00703402]
[1673392692178,3.32103459,17434.0,17433.0,0.00703402]
[1673392692438,3.66385362,17434.0,17433.0,0.00703402]
[1673392692686,3.32103228,17434.0,17433.0,0.00703402]
[1673392692937,3.49222958,17434.0,17433.0,0.00703402]
[1673392693204,3.31603148,17434.0,17433.0,0.00703402]
[1673392693456,2.16852194,17434.0,17433.0,0.00703402]
[1673392693709,3.48725356,17434.0,17433.0,0.00703402]
[1673392693928,3.31602776,17434.0,17433.0,0.00703402]
[1673392694181,3.48725356,17434.0,17433.0,0.00703402]
[1673392697178,0.70026594,17433.0,17432.0,0.00970008]
[1673392697430,2.23009744,17433.0,17432.0,0.00970008]
[1673392698195,1.5298315,17433.0,17432.0,0.00970008]
[1673392698464,3.43078015,17433.0,17432.0,0.00970008]
[1673392698723,3.73118015,17433.0,17432.0,0.01270008]
[1673392699010,4.67437634,17433.0,17432.0,0.01270008]
[1673392699546,3.73104433,17433.0,17432.0,0.01270008]
[1673392699797,2.41202325,17433.0,17432.0,0.01270008]
[1673392701415,2.1548946,17433.0,17432.0,0.01270008]
[1673392701683,2.41202325,17433.0,17432.0,0.01270008]
[1673392704371,2.77365037,17433.0,17432.0,0.01270008]
[1673392705029,2.51652172,17433.0,17432.0,0.01270008]
[1673392705475,2.1548946,17433.0,17432.0,0.01270008]
[1673392706362,2.1548946,17433.0,17432.0,0.01261531]
[1673392710502,2.98564725,17433.0,17432.0,0.01261531]
[1673392710745,3.15704557,17433.0,17432.0,0.01261531]
[1673392710992,2.99304557,17433.0,17432.0,0.01261531]
[1673392711253,3.42502267,17433.0,17432.0,0.01261531]
[1673392711765,1.99078741,17433.0,17432.0,0.01261531]
[1673392717419,2.24791606,17433.0,17432.0,0.01261531]
[1673392719219,2.99304557,17433.0,17432.0,0.01261531]
[1673392719475,2.82156966,17433.0,17432.0,0.01261531]
[1673392719726,2.99304557,17433.0,17432.0,0.01261531]
[1673392719990,2.82156498,17433.0,17432.0,0.01261531]
[1673392720232,3.25354218,17433.0,17432.0,0.01261531]
[1673392720493,3.42502277,17433.0,17432.0,0.01261531]
[1673392720738,4.57267559,17433.0,17432.0,0.01261531]
[1673392721008,4.5726778,17433.0,17432.0,0.01261531]
[1673392721262,3.42502277,17433.0,17432.0,0.01261531]
[1673392721768,4.57267393,17433.0,17432.0,0.01261531]
[1673392722533,3.99065742,17433.0,17432.0,0.01261531]
[1673392722792,4.56428142,17433.0,17432.0,0.01261531]
[1673392723049,5.13877989,17433.0,17432.0,0.01261531]
[1673392723313,5.65177968,17433.0,17432.0,0.01261531]
[1673392726596,5.99446908,17433.0,17432.0,0.01261531]
[1673392727097,0.2,17432.0,17430.0,0.01161542]
[1673392727352,1.10844229,17431.0,17430.0,0.01161542]
[1673392727607,0.69037889,17431.0,17430.0,0.01161542]
[1673392728359,0.69037889,17431.0,17430.0,0.01461542]
[1673392729122,0.33112989,17431.0,17430.0,0.01461542]
[1673392729373,0.33112989,17431.0,17430.0,0.01161542]
[1673392729624,0.45812989,17431.0,17430.0,0.01461542]
[1673392730399,0.81737889,17431.0,17430.0,0.01461542]
[1673392731569,0.45812989,17431.0,17430.0,0.01461542]
[1673392731823,0.81737889,17431.0,17430.0,0.01461542]
[1673392732865,0.45812989,17431.0,17430.0,0.01461542]
[1673392733117,0.28674498,17431.0,17430.0,0.01461542]
[1673392733832,0.127,17431.0,17430.0,0.81407129]
[1673392734134,0.127,17431.0,17430.0,1.48594089]
[1673392734330,0.127,17431.0,17430.0,2.99263589]
[1673392735467,0.127,17431.0,17430.0,2.63338689]
[1673392735896,0.127,17431.0,17430.0,2.99263589]
[1673392737405,0.127,17431.0,17430.0,2.99278344]
[1673392737620,0.127,17431.0,17430.0,2.63353444]
[1673392737837,0.127,17431.0,17430.0,2.63338689]
[1673392738275,0.127,17431.0,17430.0,2.99263589]
[1673392738487,0.127,17431.0,17430.0,2.33338689]
[1673392738992,0.127,17431.0,17430.0,2.16151729]
[1673392739168,0.127,17431.0,17430.0,2.33338689]
[1673392739620,0.127,17431.0,17430.0,2.63338689]
[1673392740417,0.127,17431.0,17430.0,2.33338689]
[1673392740418,0.127,17431.0,17430.0,2.16151729]
[1673392740647,0.127,17431.0,17430.0,2.46151729]
[1673392740865,0.127,17431.0,17430.0,2.63338689]
[1673392741095,0.127,17431.0,17430.0,2.16151729]
[1673392741313,0.127,17431.0,17430.0,2.33338689]
[1673392741529,0.127,17431.0,17430.0,2.63338689]
[1673392742212,0.127,17431.0,17430.0,2.99263589]
[1673392743332,0.127,17431.0,17430.0,2.63338689]
[1673392743557,0.127,17431.0,17430.0,2.33338689]
[1673392745131,0.127,17431.0,17430.0,2.63338689]
[1673392749728,0.127,17431.0,17430.0,2.16151729]
[1673392751194,0.127,17431.0,17430.0,2.63338689]
[1673392751442,0.127,17431.0,17430.0,2.99263589]
[1673392751695,0.127,17431.0,17430.0,2.16151729]
[1673392751941,0.127,17431.0,17430.0,2.52076629]
[1673392752203,0.127,17431.0,17430.0,2.99263589]
[1673392753085,0.127,17431.0,17430.0,2.63338689]
[1673392754599,0.127,17431.0,17430.0,2.33338689]
[1673392755382,0.127,17431.0,17430.0,2.63338689]
[1673392755632,0.127,17431.0,17430.0,2.33338689]
[1673392756426,0.127,17431.0,17430.0,2.99263589]
[1673392756944,0.127,17431.0,17430.0,2.69263589]
[1673392757196,0.127,17431.0,17430.0,2.16151729]
[1673392761207,0.127,17431.0,17430.0,1.99691729]
[1673392761466,0.127,17431.0,17430.0,0.78833842]
[1673392761734,0.127,17431.0,17430.0,0.58833842]
[1673392763618,0.6570142,17431.0,17430.0,0.58833842]
[1673392766744,0.82839911,17431.0,17430.0,0.58833842]
[1673392767514,0.6570142,17431.0,17430.0,0.58833842]
[1673392768017,0.82839911,17431.0,17430.0,0.58833842]
[1673392768545,0.82839911,17431.0,17430.0,0.01461542]
[1673392768825,2.40451094,17431.0,17430.0,0.01461542]
[1673392770099,2.57606813,17431.0,17430.0,0.01461542]
[1673392770345,2.23337956,17431.0,17430.0,0.01461542]
[1673392770610,1.08565195,17431.0,17430.0,0.01461542]
[1673392771141,2.23338103,17431.0,17430.0,0.01461542]
[1673392771393,1.08565195,17431.0,17430.0,0.01461542]
[1673392775244,0.82857459,17431.0,17430.0,0.01461542]
[1673392775979,1.08565195,17431.0,17430.0,0.01461542]
[1673392777753,0.82857459,17431.0,17430.0,0.01461542]
[1673392778505,1.08565195,17431.0,17430.0,0.01461542]
[1673392779004,1.24539693,17431.0,17430.0,0.01461542]
[1673392781026,1.76774593,17431.0,17430.0,0.01461542]
[1673392781782,3.25818187,17431.0,17430.0,0.01461542]
[1673392782283,3.08662148,17431.0,17430.0,0.01461542]
[1673392782539,3.08662148,17431.0,17429.0,0.05927341]
[1673392782795,0.359249,17430.0,17429.0,0.05927341]
[1673392783047,1.40840489,17431.0,17429.0,0.05927341]
[1673392783328,1.40840489,17431.0,17429.0,0.01113905]
[1673392783556,0.359249,17430.0,17429.0,0.01113905]
[1673392783807,1.33840489,17431.0,17429.0,0.01413905]
[1673392784084,0.17146835,17430.0,17429.0,0.01413905]
[1673392784590,1.62409177,17431.0,17429.0,0.01113905]
[1673392784850,0.17746835,17430.0,17429.0,0.03013905]
[1673392785828,0.17146835,17430.0,17429.0,0.01413905]
[1673392786087,0.17146835,17430.0,17429.0,0.01113905]
[1673392786310,0.17746835,17430.0,17429.0,0.03013905]
[1673392787351,0.87387538,17430.0,17429.0,0.03013905]
[1673392787612,1.49020174,17430.0,17429.0,0.03013905]
[1673392787884,2.80924965,17430.0,17429.0,0.03013905]
[1673392788127,1.49017727,17430.0,17429.0,0.03013905]
[1673392788645,1.49016272,17430.0,17429.0,0.03013905]
[1673392789919,1.23308536,17430.0,17429.0,0.03013905]
[1673392791191,1.39758536,17430.0,17429.0,0.03013905]
[1673392793032,1.55733034,17430.0,17429.0,0.03013905]
[1673392793235,1.39758536,17430.0,17429.0,0.03013905]
[1673392793493,1.55733034,17430.0,17429.0,0.03013905]
[1673392793996,1.19808134,17430.0,17429.0,0.03013905]
[1673392794249,1.02665201,17430.0,17429.0,0.03013905]
[1673392794496,1.19808134,17430.0,17429.0,0.03013905]
[1673392797022,1.8144077,17430.0,17429.0,0.03013905]
[1673392797271,1.55733034,17430.0,17429.0,0.03013905]
[1673392797541,1.8144077,17430.0,17429.0,0.03013905]
[1673392798574,2.0729941,17430.0,17429.0,0.03013905]
[1673392798816,3.56347869,17430.0,17429.0,0.03013905]
[1673392799070,3.22093282,17430.0,17429.0,0.03013905]
[1673392799342,3.39204936,17430.0,17429.0,0.03013905]
[1673392800130,3.22093003,17430.0,17429.0,0.03013905]
[1673392800372,2.07313232,17430.0,17429.0,0.03013905]
[1673392800698,3.2209197,17430.0,17429.0,0.03013905]
[1673392800946,3.39204531,17430.0,17429.0,0.03013905]
[1673392801958,4.44490958,17430.0,17429.0,0.03013905]
[1673392802230,4.1022227,17430.0,17429.0,0.03013905]
[1673392803546,2.97704623,17430.0,17429.0,0.03013905]
[1673392804310,3.6098047,17430.0,17429.0,0.03013905]
[1673392804868,3.55076923,17430.0,17429.0,0.03013905]
[1673392805884,4.12449223,17430.0,17429.0,0.03013905]
[1673392806684,4.12449223,17430.0,17429.0,0.03007562]
[1673392807209,4.82213772,17430.0,17429.0,0.03007562]
[1673392807463,0.01925673,17428.0,17427.0,0.01209986]
[1673392807731,1.46781688,17428.0,17427.0,0.01209986]
[1673392807990,2.61561054,17428.0,17427.0,0.01209986]
[1673392808241,3.18790129,17428.0,17427.0,0.01209986]
[1673392808803,3.32390129,17428.0,17427.0,0.01209986]
[1673392809836,2.00452079,17428.0,17427.0,0.01209986]
[1673392811365,1.83992079,17428.0,17427.0,0.01209986]
[1673392811620,1.582621,17428.0,17427.0,0.01209986]
[1673392812131,1.83992079,17428.0,17427.0,0.01209986]
[1673392817426,3.15949205,17428.0,17427.0,0.01209986]
[1673392818198,2.18289391,17428.0,17427.0,0.01209986]
[1673392818450,1.83982753,17428.0,17427.0,0.01209986]
[1673392819214,3.7332763,17428.0,17427.0,0.01209986]
[1673392819459,3.81677557,17428.0,17427.0,0.01209986]
[1673392821802,3.41601801,17428.0,17427.0,0.01209986]
[1673392822039,4.03496214,17428.0,17427.0,0.01209986]
[1673392822285,3.86319001,17428.0,17427.0,0.01209986]
[1673392824091,3.77969074,17428.0,17427.0,0.01209986]
[1673392824348,3.20590174,17428.0,17427.0,0.04164953]
[1673392824598,1.8862429,17428.0,17427.0,0.04164953]
[1673392826649,3.37728469,17428.0,17427.0,0.04164953]
[1673392826900,3.03421865,17428.0,17427.0,0.04164953]
[1673392827156,3.20589771,17428.0,17427.0,0.04164953]
[1673392827414,4.56627101,17428.0,17427.0,0.04164953]
[1673392827682,5.22395772,17428.0,17427.0,0.04164953]
[1673392827925,4.88121396,17428.0,17427.0,0.04164953]
[1673392828443,5.41454161,17428.0,17427.0,0.04164953]
[1673392829217,4.88121396,17428.0,17427.0,0.04164953]
[1673392830309,5.41448208,17428.0,17427.0,0.04164953]
[1673392830562,5.41447124,17428.0,17427.0,0.04164953]
[1673392830829,4.88121396,17428.0,17427.0,0.04164953]
[1673392831084,4.88121396,17428.0,17427.0,0.04155429]
[1673392831804,4.38584666,17428.0,17427.0,0.04155429]
[1673392832569,4.7285509,17428.0,17427.0,0.04155429]
[1673392833375,4.72853035,17428.0,17427.0,0.04155429]
[1673392834121,4.38584666,17428.0,17427.0,0.04155429]
[1673392834359,4.72854077,17428.0,17427.0,0.04155429]
[1673392834643,4.38584666,17428.0,17427.0,0.04155429]
[1673392834886,5.08708297,17428.0,17427.0,0.04155429]
[1673392835136,5.42988104,17428.0,17427.0,0.04155429]
[1673392838491,4.51329397,17428.0,17427.0,0.04155429]
[1673392838780,4.49403724,17428.0,17427.0,0.04155429]
[1673392839336,3.90060426,17428.0,17427.0,0.04155429]
[1673392840128,3.37018906,17428.0,17427.0,0.04155429]
[1673392840382,4.05534208,17428.0,17427.0,0.04155429]
[1673392840646,3.88452097,17428.0,17427.0,0.04155429]
[1673392840904,4.45830997,17428.0,17427.0,0.04155429]
[1673392841182,3.77315695,17428.0,17427.0,0.04155429]
[1673392841417,4.37654377,17428.0,17427.0,0.04155429]
[1673392841669,3.80275477,17428.0,17427.0,0.04155429]
[1673392842175,4.23161511,17428.0,17427.0,0.04155429]
[1673392842686,3.80275477,17428.0,17427.0,0.04155429]
[1673392843239,4.23170018,17428.0,17427.0,0.04155429]
[1673392843441,4.71927458,17428.0,17427.0,0.04155429]
[1673392843688,3.80275477,17428.0,17427.0,0.04155429]
[1673392845219,4.37654377,17428.0,17427.0,0.04155429]
[1673392845466,4.8895828,17428.0,17427.0,0.04155429]
[1673392846747,4.28619598,17428.0,17427.0,0.04155429]
[1673392847253,4.77219378,17428.0,17427.0,0.04155429]
[1673392847757,5.35439022,17428.0,17427.0,0.04155429]
[1673392848007,4.77219378,17428.0,17427.0,0.04155429]
[1673392848274,0.02299116,17426.0,17424.0,0.06339042]
[1673392848538,2.43911124,17425.0,17424.0,0.06339042]
[1673392848816,2.26752421,17425.0,17424.0,0.06339042]
[1673392849060,2.26752421,17425.0,17424.0,0.01391976]
[1673392849340,1.93616908,17425.0,17424.0,0.01391976]
[1673392849649,2.09591406,17425.0,17424.0,0.01391976]
[1673392849850,3.07065747,17425.0,17424.0,0.01391976]
[1673392850392,2.79752728,17425.0,17424.0,0.01391976]
[1673392850645,2.62591855,17425.0,17424.0,0.01391976]
[1673392850922,1.49094291,17425.0,17424.0,0.01691976]
[1673392851168,1.33119793,17425.0,17424.0,0.01691976]
[1673392851432,0.71456839,17425.0,17424.0,0.01691976]
[1673392851697,0.70156839,17425.0,17424.0,0.01391976]
[1673392851950,0.53600307,17425.0,17424.0,0.01591976]
[1673392852467,0.66400307,17425.0,17424.0,0.01391976]
[1673392857062,0.83556839,17425.0,17424.0,0.01391976]
[1673392857556,0.66400307,17425.0,17424.0,0.01391976]
[1673392857812,0.83556839,17425.0,17424.0,0.01391976]
[1673392858063,1.45219793,17425.0,17424.0,0.01391976]
[1673392858337,1.09294893,17425.0,17424.0,0.01391976]
[1673392860646,2.2410598,17425.0,17424.0,0.01391976]
[1673392861670,2.6003088,17425.0,17424.0,0.01391976]
[1673392861930,2.5983978,17425.0,17424.0,0.01391976]
[1673392862182,2.05423078,17425.0,17424.0,0.01391976]
[1673392862441,2.05428273,17425.0,17424.0,0.01391976]
[1673392862718,1.88266546,17425.0,17424.0,0.01391976]
[1673392862974,2.24191446,17425.0,17424.0,0.01391976]
[1673392863477,2.07035608,17425.0,17424.0,0.01391976]
[1673392863738,0.56299621,17425.0,17424.0,0.01391976]
[1673392864004,1.71110687,17425.0,17424.0,0.01391976]
[1673392864269,0.56299621,17425.0,17424.0,0.01391976]
[1673392864778,1.711104,17425.0,17424.0,0.01391976]
[1673392865060,0.56299621,17425.0,17424.0,0.01391976]
[1673392865562,0.30561567,17425.0,17424.0,0.01391976]
[1673392868837,0.134,17425.0,17424.0,0.41581765]
[1673392869100,0.134,17425.0,17424.0,2.32178036]
[1673392869351,0.134,17425.0,17424.0,2.02178036]
[1673392869605,0.134,17425.0,17424.0,2.95957989]
[1673392870654,0.134,17425.0,17424.0,3.72317989]
[1673392871441,0.134,17425.0,17424.0,3.89384799]
[1673392871694,0.134,17425.0,17424.0,3.72330384]
[1673392871976,0.134,17425.0,17424.0,3.89384799]
[1673392872794,0.134,17425.0,17424.0,4.06579235]
[1673392872992,0.134,17425.0,17424.0,3.89384799]
[1673392874301,0.134,17425.0,17424.0,4.9275036]
[1673392874513,0.134,17425.0,17424.0,4.5851135]
[1673392874811,0.134,17425.0,17424.0,4.92882901]
[1673392875584,0.134,17425.0,17424.0,4.5851135]
[1673392876346,0.134,17425.0,17424.0,4.92882314]
[1673392878151,0.134,17425.0,17424.0,4.64186314]
[1673392878403,0.134,17425.0,17424.0,4.68625776]
[1673392879191,0.134,17425.0,17424.0,4.64186314]
[1673392880994,0.11585895,17425.0,17424.0,4.64186314]
[1673392881257,0.11585895,17425.0,17424.0,4.48606314]
[1673392881516,0.11585895,17425.0,17424.0,4.54597625]